bitfinex/quotes_SOLUSD_20220306
["timestamp","ask_amount","ask_price","bid_price","bid_amount"]
[1646566321177,29.8843,86.511,86.442,26.70354612]
[1646566321579,6.32570487,86.51,86.442,26.70354612]
[1646566321780,5.781,86.509,86.442,26.70354612]
[1646566322382,5.781,86.51,86.442,26.70354612]
[1646566322782,6.32567965,86.509,86.442,26.70354612]
[1646566322982,5.781,86.508,86.442,26.70354612]
[1646566323183,5.781,86.508,86.442,44.13624612]
[1646566323484,5.782,86.51,86.443,26.70354612]
[1646566323682,5.782,86.51,86.443,51.92398111]
[1646566323881,24.1033,86.511,86.443,51.92398111]
[1646566324182,24.1033,86.511,86.45,17.3516]
[1646566325384,24.1033,86.511,86.45,20.18773526]
[1646566327086,24.1033,86.511,86.451,26.70354612]
[1646566327288,5.781,86.529,86.46,17.3495]
[1646566327487,22.8904,86.528,86.46,17.3495]
[1646566328310,50.22094825,86.527,86.461,27.49812646]
[1646566329789,5.78,86.526,86.461,27.49812646]
[1646566330993,50.22094825,86.527,86.461,27.49812646]
[1646566336013,1.55038639,86.5,86.418,2.83613526]
[1646566336210,1.55038639,86.498,86.412,26.70354612]
[1646566336410,53.25280506,86.496,86.413,64.03932651]
[1646566336610,47.7879,86.495,86.418,26.70354612]
[1646566337010,49.33828639,86.495,86.418,26.70354612]
[1646566337211,1.55038639,86.494,86.418,52.42011637]
[1646566337610,1.55038639,86.493,86.418,52.42011637]
[1646566337811,1.55038639,86.492,86.418,52.42011637]
[1646566338114,1.55038639,86.492,86.42,17.3578]
[1646566338519,1.55038639,86.491,86.421,26.70354612]
[1646566338921,1.55038639,86.494,86.422,25.71657025]
[1646566339118,1.55038639,86.493,86.422,25.71657025]
[1646566339418,1.55038639,86.493,86.431,9.19841331]
[1646566339626,1.55038639,86.491,86.431,9.19841331]
[1646566339817,1.55038639,86.491,86.432,26.70354612]
[1646566340317,1.55038639,86.49,86.432,26.70354612]
[1646566341120,1.55038639,86.487,86.432,26.70354612]
[1646566341318,1.55038639,86.487,86.433,61.34849142]
[1646566341817,1.55038639,86.487,86.433,88.05203754]
[1646566342419,1.55038639,86.486,86.433,88.05203754]
[1646566342618,1.55038639,86.487,86.433,88.05203754]
[1646566343220,1.55038639,86.483,86.433,88.05203754]
[1646566343441,59.233862,86.482,86.433,88.05203754]
[1646566343644,60.78424839,86.482,86.433,88.05203754]
[1646566343844,59.233862,86.482,86.433,88.05203754]
[1646566344441,1.55038639,86.484,86.433,88.05203754]
[1646566344655,1.55038639,86.492,86.434,124.71913526]
[1646566345042,1.55038639,86.497,86.435,29.53968138]
[1646566345242,1.55038639,86.498,86.436,5.782]
[1646566345541,1.55038639,86.499,86.44,17.3536]
[1646566345742,1.55038639,86.499,86.441,5.782]
[1646566345942,1.55038639,86.504,86.442,116.1]
[1646566346142,1.55038639,86.505,86.443,5.782]
[1646566346344,1.55038639,86.501,86.443,5.782]
[1646566346541,1.55038639,86.501,86.444,133.19790028]
[1646566346741,1.55038639,86.502,86.445,5.782]
[1646566346941,1.55038639,86.501,86.446,11.8892484]
[1646566347142,1.55038639,86.502,86.45,17.3503]
[1646566347342,1.55038639,86.501,86.45,17.3503]
[1646566347641,1.55038639,86.502,86.451,8.61713526]
[1646566348041,64.84420469,86.502,86.451,8.61713526]
[1646566348543,1.55038639,86.5,86.451,8.61713526]
[1646566349144,1.55038639,86.5,86.452,26.70354612]
[1646566349343,1.55038639,86.5,86.453,5.781]
[1646566349747,1.55038639,86.501,86.453,5.781]
[1646566350748,1.55038639,86.5,86.452,5.781]
[1646566351147,63.2938183,86.502,86.452,5.781]
[1646566351148,1.55038639,86.498,86.452,5.781]
[1646566352050,1.55038639,86.499,86.452,5.781]
[1646566352248,1.55038639,86.498,86.452,5.781]
[1646566352449,1.55038639,86.498,86.451,2.83613526]
[1646566353450,1.55038639,86.496,86.441,5.782]
[1646566353650,1.55038639,86.494,86.441,5.782]
[1646566353851,1.55038639,86.494,86.442,26.70354612]
[1646566354053,1.55038639,86.494,86.443,5.782]
[1646566354451,1.55038639,86.496,86.45,17.3509]
[1646566354652,1.55038639,86.496,86.451,5.782]
[1646566354952,1.55038639,86.496,86.451,32.48554612]
[1646566355657,1.55038639,86.497,86.451,32.48554612]
[1646566357154,1.55038639,86.497,86.452,26.70354612]
[1646566357354,1.55038639,86.497,86.453,5.782]
[1646566359657,1.55038639,86.497,86.453,23.2199]
[1646566360163,1.55038639,86.495,86.453,23.2199]
[1646566360762,63.2938183,86.502,86.46,17.3486]
[1646566360962,1.55038639,86.503,86.461,19.67951296]
[1646566361162,1.55038639,86.504,86.461,19.67951296]
[1646566361760,1.55038639,86.507,86.461,46.38305908]
[1646566361961,1.55038639,86.506,86.461,46.38305908]
[1646566362365,1.55038639,86.506,86.47,17.3474]
[1646566362567,1.55038639,86.506,86.471,5.781]
[1646566362768,1.55038639,86.507,86.471,5.781]
[1646566362966,1.55038639,86.507,86.463,5.781]
[1646566363166,1.55038639,86.506,86.463,5.781]
[1646566363373,1.55038639,86.506,86.463,32.48454612]
[1646566363866,1.55038639,86.507,86.463,32.48454612]
[1646566364266,1.55038639,86.508,86.463,32.48454612]
[1646566364471,1.55038639,86.512,86.464,118.93613526]
[1646566364675,1.55038639,86.519,86.465,5.781]
[1646566364867,1.55038639,86.521,86.465,49.5824464]
[1646566365067,1.55038639,86.521,86.47,17.3474]
[1646566365267,1.55038639,86.523,86.471,5.78]
[1646566365469,1.55038639,86.525,86.471,189.60188139]
[1646566365671,1.55038639,86.524,86.473,116.1]
[1646566365868,51.45917648,86.54,86.474,5.78]
[1646566365869,1.55038639,86.529,86.474,5.78]
[1646566366068,1.55038639,86.529,86.475,116.1]
[1646566366269,1.55038639,86.53,86.476,5.78]
[1646566366671,1.55038639,86.533,86.477,118.93613526]
[1646566366868,1.55038639,86.533,86.478,5.78]
[1646566367069,1.55038639,86.533,86.478,35.31968138]
[1646566367269,1.55038639,86.533,86.48,17.3446]
[1646566367568,1.55038639,86.532,86.48,17.3446]
[1646566367768,1.55038639,86.532,86.481,27.54233526]
[1646566367974,1.55038639,86.533,86.481,27.54233526]
[1646566368174,1.55038639,86.533,86.49,17.3434]
[1646566368372,1.55038639,86.538,86.491,116.1]
[1646566368674,1.55038639,86.557,86.491,191.74932617]
[1646566368974,1.55038639,86.565,86.494,0.59460778]
[1646566369175,3.12334829,86.59,86.494,0.59460778]
[1646566369176,52.02718804,86.564,86.495,116.1]
[1646566369374,52.02718804,86.564,86.501,116.1]
[1646566369977,52.02718804,86.564,86.503,116.1]
[1646566370373,52.02718804,86.564,86.496,24.7062]
[1646566370374,52.02718804,86.564,86.504,191.74932617]
[1646566370573,52.02718804,86.564,86.51,17.3365]
[1646566370976,52.02718804,86.564,86.511,21.21201172]
[1646566371176,52.02718804,86.564,86.511,47.91555784]
[1646566371378,52.02718804,86.564,86.512,21.21201172]
[1646566371677,52.02718804,86.564,86.513,18.37587646]
[1646566371876,52.02718804,86.564,86.513,21.21201172]
[1646566372076,52.02718804,86.564,86.514,2.83613526]
[1646566372280,52.02718804,86.564,86.52,41.86348295]
[1646566372478,52.02718804,86.564,86.52,17.3359]
[1646566372879,1.55038639,86.58,86.521,18.37587646]
[1646566373083,1.55038639,86.58,86.521,45.07942258]
[1646566373279,1.55038639,86.581,86.53,17.3349]
[1646566373678,1.55038639,86.579,86.53,17.3349]
[1646566373879,51.64585179,86.578,86.522,18.37587646]
[1646566374079,53.19623818,86.578,86.522,18.37587646]
[1646566374281,1.55038639,86.577,86.522,18.37587646]
[1646566374478,53.19623818,86.578,86.522,45.07942258]
[1646566374680,51.64585179,86.578,86.522,45.07942258]
[1646566374880,51.64585179,86.578,86.523,18.37587646]
[1646566376278,51.64585179,86.578,86.53,17.3343]
[1646566376679,51.64585179,86.578,86.522,83.40404684]
[1646566377104,23.1611,86.577,86.522,83.40404684]
[1646566378181,23.1611,86.577,86.522,56.70050072]
[1646566378781,23.1611,86.577,86.52,17.3366]
[1646566379987,22.6611,86.577,86.52,17.3366]
[1646566380187,22.6611,86.577,86.521,186.09920534]
[1646566380388,22.6611,86.577,86.53,17.3333]
[1646566380587,22.6611,86.577,86.531,58.12826157]
[1646566380788,22.6611,86.577,86.531,75.7940172]
[1646566380992,22.6611,86.577,86.531,78.63015246]
[1646566381193,1.55038639,86.596,86.533,116.1]
[1646566381392,1.55038639,86.6,86.533,116.1]
[1646566381692,1.55038639,86.603,86.534,44.77877035]
[1646566381895,1.55038639,86.603,86.541,116.1]
[1646566382095,1.55038639,86.612,86.542,0.60095233]
[1646566382292,52.2197,86.648,86.535,25.82739576]
[1646566382293,1.55038639,86.624,86.544,116.1]
[1646566382492,1.55038639,86.625,86.545,0.60095233]
[1646566382694,1.55038639,86.631,86.545,24.27687946]
[1646566382993,1.55038639,86.632,86.546,41.94263509]
[1646566383193,1.55038639,86.631,86.546,41.94263509]
[1646566383492,1.55038639,86.622,86.547,17.66575563]
[1646566383692,1.55038639,86.616,86.547,41.94263509]
[1646566383893,5.774,86.615,86.547,41.94263509]
[1646566384094,5.774,86.615,86.547,17.66575563]
[1646566384496,5.774,86.616,86.55,17.3308]
[1646566385111,7.32438639,86.616,86.55,17.3308]
[1646566385616,7.32438639,86.616,86.551,27.11301472]
[1646566385814,1.55038639,86.616,86.56,17.3285]
[1646566386113,23.484,86.62,86.561,15.10947825]
[1646566387415,23.484,86.62,86.562,2.83613526]
[1646566389317,23.484,86.62,86.57,17.3273]
[1646566392316,23.484,86.62,86.571,2.83613526]
[1646566393418,23.484,86.62,86.58,17.3251]
[1646566393818,23.484,86.62,86.581,2.83613526]
[1646566394623,1.55038639,86.624,86.581,2.83613526]
[1646566394825,1.55038639,86.626,86.59,17.323]
[1646566395024,1.55038639,86.63,86.59,17.323]
[1646566395223,1.55038639,86.63,86.591,2.83613526]
[1646566395423,1.55038639,86.633,86.591,2.83613526]
[1646566395724,1.55038639,86.634,86.592,49.77190021]
[1646566395926,1.55038639,86.636,86.6,17.321]
[1646566396126,1.55038639,86.646,86.6,17.321]
[1646566396325,24.53218639,86.647,86.6,17.321]
[1646566396526,1.55038639,86.646,86.601,20.50189089]
[1646566396728,1.55038639,86.642,86.601,20.50189089]
[1646566396929,1.55038639,86.642,86.602,17.66575563]
[1646566397133,1.55038639,86.643,86.602,17.66575563]
[1646566397428,1.55038639,86.644,86.61,17.3189]
[1646566397629,1.55038639,86.645,86.61,17.3189]
[1646566397828,1.55038639,86.649,86.61,17.3189]
[1646566398027,1.55038639,86.649,86.611,2.83613526]
[1646566398229,1.55038639,86.658,86.611,27.11301472]
[1646566398430,5.771,86.688,86.62,17.3115]
[1646566398431,1.55038639,86.663,86.62,17.3115]
[1646566398828,1.55038639,86.665,86.62,17.3115]
[1646566399029,1.55038639,86.665,86.621,19.00744984]
[1646566399230,1.55038639,86.665,86.622,139.56583961]
[1646566399430,5.35940661,86.689,86.623,40.0]
[1646566399633,3.12334829,86.726,86.631,4.95815723]
[1646566399830,3.12334829,86.731,86.625,0.724539]
[1646566400032,3.12334829,86.728,86.632,2.83613526]
[1646566400229,24.7293,86.749,86.632,2.83613526]
[1646566400230,3.12334829,86.738,86.632,2.83613526]
[1646566400429,59.93265473,86.737,86.632,2.83613526]
[1646566400632,59.93265473,86.737,86.633,43.38619404]
[1646566400831,63.05600302,86.737,86.633,43.38619404]
[1646566401035,3.12334829,86.734,86.651,49.77190021]
[1646566401231,30.4973,86.736,86.651,49.77190021]
[1646566401232,3.12334829,86.731,86.651,49.77190021]
[1646566401433,5.768,86.73,86.651,49.77190021]
[1646566401834,8.89134829,86.731,86.652,27.21487946]
[1646566402033,5.768,86.731,86.652,27.21487946]
[1646566402237,5.768,86.731,86.651,49.77190021]
[1646566402435,5.768,86.732,86.651,49.77190021]
[1646566402836,22.5077,86.733,86.651,49.77190021]
[1646566403534,17.3134,86.73,86.651,49.77190021]
[1646566403736,5.768,86.729,86.651,49.77190021]
[1646566403936,5.768,86.715,86.651,49.77190021]
[1646566404137,5.768,86.715,86.634,16.17131458]
[1646566404337,116.1,86.713,86.624,29.75938138]
[1646566404536,116.1,86.709,86.592,24.9339]
[1646566404741,5.769,86.708,86.594,26.92324612]
[1646566404939,5.769,86.708,86.594,50.32368111]
[1646566405141,46.77764365,86.707,86.595,87.40399947]
[1646566405339,5.769,86.706,86.596,116.1]
[1646566405540,49.52624268,86.707,86.601,116.1]
[1646566405739,46.77764365,86.707,86.601,116.1]
[1646566405945,46.77764365,86.707,86.603,116.1]
[1646566406140,8.89234829,86.732,86.622,5.08621949]
[1646566406342,22.5077,86.733,86.622,5.08621949]
[1646566406541,22.5077,86.733,86.632,5.28224511]
[1646566406740,5.768,86.732,86.633,0.724539]
[1646566406941,5.768,86.732,86.634,116.1]
[1646566407244,5.768,86.732,86.634,189.3578437]
[1646566407442,22.5077,86.733,86.636,116.1]
[1646566407842,22.5077,86.733,86.638,116.1]
[1646566408042,22.5077,86.733,86.651,116.1]
[1646566408441,22.5077,86.733,86.653,116.1]
[1646566408842,22.5077,86.733,86.654,43.45936863]
[1646566409043,22.5077,86.733,86.67,17.3033]
[1646566409242,22.5077,86.733,86.671,53.69075009]
[1646566409642,22.5077,86.733,86.671,56.52688535]
[1646566410043,22.5077,86.733,86.672,2.83613526]
[1646566411270,22.5077,86.733,86.68,17.3053]
[1646566411670,22.5077,86.733,86.68,20.14143526]
[1646566414068,22.5077,86.733,86.671,53.69075009]
[1646566414069,22.5077,86.733,86.669,2.83613526]
[1646566414975,22.5077,86.733,86.67,46.18215378]
[1646566415568,22.5077,86.733,86.67,63.48955378]
[1646566417875,22.5077,86.733,86.68,17.3058]
[1646566418574,3.12334829,86.756,86.681,90.09826547]
[1646566418775,3.12334829,86.761,86.683,0.724539]
[1646566419173,3.12334829,86.761,86.701,116.1]
[1646566419374,2.62334829,86.761,86.701,116.1]
[1646566419574,2.62334829,86.785,86.703,116.1]
[1646566419777,45.7934,86.804,86.703,116.1]
[1646566419976,5.763,86.803,86.705,116.1]
[1646566420173,60.72119256,86.802,86.705,162.28215378]
[1646566420376,60.72119256,86.802,86.71,17.2939]
[1646566420775,60.72119256,86.802,86.711,48.95339494]
[1646566420776,5.763,86.801,86.711,48.95339494]
[1646566421176,5.763,86.801,86.712,74.92668642]
[1646566421377,5.763,86.801,86.712,56.54319507]
[1646566421576,5.763,86.801,86.713,56.54319507]
[1646566421778,5.763,86.801,86.721,26.47618726]
[1646566422177,60.72119256,86.802,86.722,53.70705981]
[1646566422377,60.72119256,86.802,86.722,56.54319507]
[1646566422679,60.72119256,86.802,86.723,56.54319507]
[1646566423078,60.72119256,86.802,86.74,17.2931]
[1646566423276,5.761,86.801,86.74,17.2931]
[1646566423777,60.72119256,86.802,86.74,17.2931]
[1646566423979,60.72119256,86.802,86.724,27.73376833]
[1646566423980,60.22119256,86.802,86.728,17.5945]
[1646566424377,121.861,86.801,86.728,17.5945]
[1646566424580,5.761,86.801,86.728,17.5945]
[1646566424979,6.82087101,86.801,86.728,17.5945]
[1646566425186,6.82087101,86.801,86.73,17.2961]
[1646566425382,1.05987101,86.801,86.73,17.2961]
[1646566425787,1.05987101,86.801,86.73,20.13223526]
[1646566427685,1.05987101,86.801,86.73,36.86905995]
[1646566428082,5.761,86.8,86.73,36.86905995]
[1646566429283,1.05987101,86.801,86.731,5.761]
[1646566429484,1.05987101,86.801,86.74,17.2935]
[1646566429686,1.05987101,86.801,86.741,5.761]
[1646566430085,1.05987101,86.801,86.741,8.59713526]
[1646566431086,6.82087101,86.801,86.741,2.83613526]
[1646566431287,6.82087101,86.801,86.733,5.761]
[1646566431490,6.82087101,86.801,86.732,5.761]
[1646566431987,5.761,86.8,86.732,5.761]
[1646566432586,5.761,86.8,86.74,17.2922]
[1646566432789,1.05987101,86.801,86.741,5.761]
[1646566433087,1.05987101,86.801,86.741,8.59713526]
[1646566433286,1.05987101,86.801,86.742,53.70705981]
[1646566433489,1.05987101,86.801,86.743,5.761]
[1646566433687,1.05987101,86.801,86.743,59.46805981]
[1646566434088,1.05987101,86.801,86.75,17.2913]
[1646566434287,1.05987101,86.801,86.751,5.761]
[1646566434787,0.55987101,86.801,86.751,5.761]
[1646566435391,0.55987101,86.801,86.76,17.2895]
[1646566435590,0.55987101,86.801,86.761,5.761]
[1646566437894,0.55987101,86.801,86.762,19.90219277]
[1646566438093,0.55987101,86.801,86.77,17.287]
[1646566438295,0.55987101,86.801,86.771,5.761]
[1646566438499,0.55987101,86.801,86.771,25.97329148]
[1646566438697,0.55987101,86.801,86.771,56.54319507]
[1646566438901,7.101e-05,86.801,86.772,178.40419507]
[1646566439101,7.101e-05,86.801,86.772,194.32635309]
[1646566439298,5.761,86.862,86.781,116.1]
[1646566439500,4.71474604,86.876,86.782,5.758]
[1646566439703,47.7631,86.878,86.79,57.5888]
[1646566439903,53.71408,86.875,86.79,57.5888]
[1646566440104,53.71408,86.875,86.791,33.49176833]
[1646566440303,53.71408,86.875,86.801,24.76559827]
[1646566440506,53.21408,86.875,86.802,5.757]
[1646566440911,116.1,86.874,86.802,5.757]
[1646566441111,116.1,86.874,86.793,5.757]
[1646566441311,69.41,86.869,86.781,5.758]
[1646566441511,5.758,86.868,86.754,27.73376833]
[1646566441710,116.1,86.859,86.756,2.83613526]
[1646566441912,116.1,86.857,86.757,5.759]
[1646566442109,5.759,86.856,86.757,59.46605981]
[1646566442309,28.1563,86.856,86.758,27.73376833]
[1646566442509,116.1,86.855,86.76,17.2887]
[1646566442710,116.1,86.855,86.761,5.759]
[1646566442910,5.759,86.854,86.759,5.759]
[1646566443116,22.8973,86.856,86.762,2.83613526]
[1646566443512,22.8973,86.856,86.763,57.49077518]
[1646566443710,22.8973,86.856,86.791,16.16756586]
[1646566443910,22.8973,86.856,86.792,5.758]
[1646566444311,22.8973,86.856,86.791,16.16756586]
[1646566444512,22.8973,86.856,86.79,17.2768]
[1646566444920,5.758,86.855,86.791,5.758]
[1646566445125,5.758,86.855,86.8,17.2815]
[1646566445326,22.8973,86.856,86.801,5.758]
[1646566445723,22.8973,86.856,86.793,5.758]
[1646566446122,22.8973,86.856,86.794,80.19907331]
[1646566446420,47.18101178,86.857,86.811,17.36122587]
[1646566446621,22.6521,86.897,86.812,5.758]
[1646566446820,5.757,86.896,86.812,5.758]
[1646566447221,5.757,86.896,86.813,2.83613526]
[1646566447422,22.6521,86.897,86.82,17.2773]
[1646566447623,55.56897893,86.896,86.821,5.756]
[1646566447823,55.56897893,86.896,86.821,8.59213526]
[1646566448025,22.6521,86.897,86.83,57.568]
[1646566448227,0.2,86.908,86.831,5.756]
[1646566448425,0.2,86.908,86.831,192.47613308]
[1646566448626,0.2,86.908,86.84,17.2725]
[1646566448825,0.2,86.908,86.841,5.755]
[1646566449025,0.2,86.908,86.841,55.16394959]
[1646566449225,0.2,86.908,86.841,49.40894959]
[1646566449426,0.2,86.908,86.842,29.1828734]
[1646566449628,0.2,86.908,86.85,17.2708]
[1646566450232,0.2,86.908,86.851,2.83613526]
[1646566450529,116.1,86.899,86.83,26.34673814]
[1646566450730,17.2795,86.9,86.831,5.756]
[1646566450929,5.756,86.907,86.817,5.756]
[1646566451127,46.29059713,86.906,86.818,52.52942327]
[1646566451328,121.856,86.905,86.819,5.756]
[1646566451529,145.2789,86.905,86.819,5.756]
[1646566452128,29.1789,86.905,86.819,5.756]
[1646566452531,29.1789,86.905,86.82,61.86928847]
[1646566452732,29.1789,86.905,86.821,5.756]
[1646566452931,116.1,86.904,86.821,5.756]
[1646566453132,116.1,86.904,86.819,5.756]
[1646566453433,116.1,86.904,86.817,5.756]
[1646566453630,5.756,86.903,86.817,5.756]
[1646566453830,75.166,86.903,86.803,5.756]
[1646566454030,116.1,86.898,86.803,5.756]
[1646566454233,116.1,86.886,86.799,5.757]
[1646566454433,69.41,86.879,86.79,5.757]
[1646566454732,116.1,86.876,86.789,26.34673814]
[1646566454933,116.1,86.874,86.789,26.34673814]
[1646566455134,185.51,86.869,86.784,5.758]
[1646566455333,5.758,86.868,86.774,5.758]
[1646566455732,5.758,86.868,86.765,5.758]
[1646566455935,5.758,86.868,86.762,58.53386586]
[1646566456134,5.758,86.868,86.766,2.83613526]
[1646566456334,185.51,86.849,86.767,5.759]
[1646566456534,5.759,86.848,86.767,5.759]
[1646566456733,5.759,86.848,86.75,5.759]
[1646566456934,116.1,86.847,86.756,24.08601344]
[1646566457134,5.76,86.846,86.757,5.76]
[1646566457334,116.1,86.844,86.758,59.50293044]
[1646566457535,5.76,86.843,86.759,5.76]
[1646566457735,5.76,86.843,86.758,88.68580384]
[1646566458034,116.1,86.839,86.76,46.4729734]
[1646566458438,116.1,86.839,86.761,34.9428734]
[1646566458836,116.1,86.839,86.762,29.1828734]
[1646566459044,116.1,86.829,86.763,5.76]
[1646566459437,5.76,86.828,86.752,2.83613526]
[1646566459837,116.1,86.826,86.763,2.83613526]
[1646566460038,116.1,86.819,86.751,2.83613526]
[1646566460239,5.761,86.818,86.751,2.83613526]
[1646566460542,75.171,86.818,86.751,2.83613526]
[1646566460837,75.171,86.818,86.749,26.34673814]
[1646566460838,185.51,86.817,86.735,26.34673814]
[1646566461043,5.761,86.816,86.736,5.761]
[1646566461239,116.1,86.809,86.735,26.34673814]
[1646566461437,116.1,86.805,86.725,5.761]
[1646566461638,69.41,86.798,86.725,5.761]
[1646566461839,69.41,86.798,86.705,49.67597054]
[1646566461840,116.1,86.795,86.723,5.761]
[1646566462043,5.763,86.794,86.71,5.763]
[1646566462244,5.763,86.794,86.709,26.34673814]
[1646566462946,116.1,86.792,86.709,26.34673814]
[1646566463141,116.1,86.789,86.709,26.34673814]
[1646566463363,5.763,86.788,86.71,2.83613526]
[1646566463842,5.763,86.789,86.711,26.34673814]
[1646566464242,5.763,86.789,86.712,2.83613526]
[1646566464649,48.06682523,86.793,86.712,2.83613526]
[1646566464650,116.1,86.779,86.712,2.83613526]
[1646566465049,5.57267993,86.778,86.712,2.83613526]
[1646566465249,168.32505925,86.777,86.712,2.83613526]
[1646566465450,116.1,86.775,86.712,2.83613526]
[1646566465651,5.764,86.774,86.712,2.83613526]
[1646566466049,5.764,86.774,86.713,20.89596902]
[1646566466252,5.764,86.776,86.713,47.24270716]
[1646566466452,52.22505925,86.777,86.714,29.1828734]
[1646566466653,5.764,86.794,86.714,29.1828734]
[1646566466853,5.764,86.794,86.72,17.2983]
[1646566467254,23.0329,86.817,86.721,66.55066388]
[1646566467656,23.0329,86.817,86.722,182.65066388]
[1646566467857,22.6091,86.825,86.74,17.2845]
[1646566468257,22.6091,86.825,86.741,37.36779048]
[1646566468457,22.6091,86.825,86.741,66.55066388]
[1646566468658,51.93052227,86.824,86.742,119.49283299]
[1646566469057,51.93052227,86.824,86.743,66.55066388]
[1646566469457,51.93052227,86.824,86.744,66.55066388]
[1646566469662,51.93052227,86.824,86.761,21.21617193]
[1646566470058,51.93052227,86.824,86.762,39.62851518]
[1646566470362,22.6091,86.844,86.763,13.28177704]
[1646566470558,22.6091,86.844,86.763,66.55066388]
[1646566470759,22.6091,86.844,86.77,17.2851]
[1646566471173,63.04444456,86.843,86.771,39.62851518]
[1646566471380,63.04444456,86.843,86.771,16.1179123]
[1646566471572,5.759,86.842,86.772,26.9221487]
[1646566471972,5.759,86.842,86.773,2.83613526]
[1646566472473,63.04444456,86.843,86.79,17.2833]
[1646566472673,63.04444456,86.843,86.776,46.58586673]
[1646566472874,63.04444456,86.843,86.791,2.83613526]
[1646566473476,63.04444456,86.843,86.777,2.83613526]
[1646566474079,116.1,86.842,86.759,24.08601344]
[1646566475176,121.86,86.842,86.76,17.2886]
[1646566476576,121.86,86.842,86.758,2.83613526]
[1646566476777,116.1,86.839,86.746,37.36779048]
[1646566476976,116.1,86.837,86.746,37.36779048]
[1646566477176,2.71478272,86.842,86.746,24.08601344]
[1646566477177,116.1,86.835,86.746,24.08601344]
[1646566477376,5.76,86.834,86.746,24.08601344]
[1646566477580,5.76,86.834,86.747,59.44436822]
[1646566478378,116.1,86.838,86.747,59.44436822]
[1646566478580,116.1,86.836,86.747,59.44436822]
[1646566478783,116.1,86.834,86.747,59.44436822]
[1646566478984,17.2938,86.83,86.747,59.44436822]
[1646566479182,116.1,86.827,86.746,24.08601344]
[1646566479382,116.1,86.825,86.746,24.08601344]
[1646566479583,116.1,86.823,86.746,24.08601344]
[1646566479785,185.51,86.821,86.727,24.08601344]
[1646566479987,185.51,86.821,86.697,5.763]
[1646566479988,185.51,86.819,86.697,5.763]
[1646566480284,116.1,86.787,86.697,47.5182332]
[1646566480484,60.03580839,86.788,86.674,16.1179123]
[1646566480485,116.1,86.783,86.674,16.1179123]
[1646566480684,116.1,86.775,86.674,16.1179123]
[1646566480885,116.1,86.773,86.674,16.1179123]
[1646566481085,116.1,86.759,86.674,16.1179123]
[1646566481285,116.1,86.757,86.674,16.1179123]
[1646566481488,116.1,86.755,86.675,46.36471669]
[1646566481684,5.766,86.754,86.675,46.36471669]
[1646566481885,116.1,86.753,86.676,2.83613526]
[1646566482094,69.41,86.75,86.659,13.28177704]
[1646566482285,69.41,86.75,86.649,2.83613526]
[1646566482286,17.3155,86.72,86.649,2.83613526]
[1646566482486,116.1,86.719,86.649,2.83613526]
[1646566482785,116.1,86.744,86.65,60.23031752]
[1646566482985,116.1,86.74,86.65,60.23031752]
[1646566483186,5.767,86.739,86.65,60.23031752]
[1646566483385,60.60777706,86.741,86.651,16.1179123]
[1646566483585,60.60777706,86.741,86.651,34.2065924]
[1646566483784,116.1,86.74,86.652,16.1179123]
[1646566484186,116.1,86.74,86.653,13.28177704]
[1646566484885,116.1,86.738,86.653,13.28177704]
[1646566485085,185.51,86.736,86.65,60.23031752]
[1646566485486,116.1,86.734,86.65,60.23031752]
[1646566485686,116.1,86.732,86.65,60.23031752]
[1646566485886,133.4151,86.73,86.65,60.23031752]
[1646566486185,116.1,86.726,86.65,60.23031752]
[1646566486393,116.1,86.724,86.65,60.23031752]
[1646566486592,5.767,86.723,86.65,60.23031752]
[1646566486789,116.1,86.726,86.651,5.767]
[1646566486987,5.767,86.729,86.651,5.767]
[1646566487194,5.767,86.752,86.651,8.60313526]
[1646566487390,5.767,86.752,86.652,20.92481536]
[1646566487588,5.767,86.752,86.653,5.766]
[1646566487888,121.866,86.784,86.653,59.48668298]
[1646566488088,56.05431698,86.752,86.654,53.72068298]
[1646566488287,56.05431698,86.752,86.66,17.3088]